bitfinex/quotes_ETHUSD_20241231
["timestamp","ask_amount","ask_price","bid_price","bid_amount"]
[1735667112816,2.98384,3351.4,3350.4,1.24936901]
[1735667113157,1.2029,3351.7,3351.1,2.98404]
[1735667113447,1.2029,3351.7,3351.1,2.98407]
[1735667113811,1.2029,3351.7,3350.9,2.98425]
[1735667114035,2.98372,3351.6,3350.4,2.98466]
[1735667114284,0.418662,3351.6,3350.2,3.0]
[1735667114458,0.55,3351.4,3350.0,2.98499]
[1735667114616,0.55,3351.4,3350.0,2.985]
[1735667114802,4.187,3351.1,3350.0,2.985]
[1735667115415,4.187,3351.1,3349.7,2.98526]
[1735667115416,2.9843,3350.9,3349.7,2.98526]
[1735667115909,1.2029,3350.7,3349.9,2.98514]
[1735667116317,1.2029,3350.7,3349.9,2.98512]
[1735667116712,1.2029,3350.7,3349.2,3.0]
[1735667116912,1.2029,3350.7,3349.8,2.98516]
[1735667118107,4.18738,3350.7,3349.1,2.98579]
[1735667118311,0.55,3350.6,3349.3,2.98569]
[1735667118633,2.98473,3350.4,3349.3,2.98569]
[1735667118812,2.98473,3350.4,3349.4,2.98559]
[1735667119014,1.2029,3350.3,3349.2,2.98571]
[1735667119259,0.55,3349.9,3348.7,4.23556901]
[1735667119462,1.2029,3349.7,3348.3,1.24936901]
[1735667119670,1.2029,3349.7,3349.5,2.9855]
[1735667119808,1.2029,3349.7,3349.3,2.98565]
[1735667120016,1.2029,3350.2,3349.3,2.98565]
[1735667120428,1.2029,3350.2,3349.8,2.98516]
[1735667120628,1.2029,3350.2,3349.1,3.0]
[1735667120972,1.2029,3350.2,3348.9,2.98605]
[1735667121111,1.2029,3350.2,3348.2,7.98831693]
[1735667121312,1.2029,3350.0,3348.8,2.98608]
[1735667121559,3.80227693,3350.7,3347.9,3.1544165]
[1735667121560,1.2029,3349.8,3348.5,2.98637]
[1735667121726,0.55,3349.2,3347.9,0.1675165]
[1735667122059,2.98613,3348.9,3348.0,1.24936901]
[1735667122258,2.98615,3348.8,3348.0,1.24936901]
[1735667122471,1.2029,3348.7,3348.0,1.24936901]
[1735667122610,1.2029,3348.7,3348.0,4.23618901]
[1735667122811,1.2029,3348.7,3348.0,1.24936901]
[1735667123457,1.2029,3348.7,3347.9,3.1544565]
[1735667123665,0.55,3348.6,3347.9,0.1675165]
[1735667123972,1.676796,3348.7,3347.9,0.1675165]
[1735667124175,1.2029,3348.7,3347.9,0.1675165]
[1735667125071,0.55,3348.6,3347.9,0.1675165]
[1735667125373,1.2029,3348.7,3347.9,0.1675165]
[1735667125757,1.2029,3348.7,3348.0,2.98683]
[1735667126272,1.2029,3348.7,3347.9,3.1544365]
[1735667126624,1.2029,3348.7,3347.9,0.1675165]
[1735667126824,0.55,3348.6,3347.9,0.1675165]
[1735667127126,2.98685,3348.0,3347.9,0.1675165]
[1735667127646,3.53685,3348.0,3347.9,0.1675165]
[1735667127869,4.76605,3348.0,3347.9,0.1675165]
[1735667128027,4.76605,3348.0,3345.3,1.24936901]
[1735667128028,2.98748,3347.4,3346.2,2.98845]
[1735667128225,0.55,3347.5,3345.6,1.1592]
[1735667128427,1.2292,3346.9,3345.6,1.1592]
[1735667128621,1.2292,3348.4,3346.3,1.1592]
[1735667128839,1.2292,3348.4,3347.4,2.98734]
[1735667129056,0.55,3348.3,3346.9,3.0]
[1735667129404,1.2292,3348.4,3347.3,2.98745]
[1735667129532,1.2292,3348.4,3346.9,2.98779]
[1735667129740,1.41135441,3348.4,3346.5,3.0]
[1735667129935,1.41135441,3348.4,3347.5,2.98729]
[1735667130135,1.41135441,3348.4,3347.5,2.9873]
[1735667130952,1.2292,3349.8,3347.5,3.80227693]
[1735667131134,0.6137303,3349.6,3349.3,2.98569]
[1735667131336,1.2292,3349.8,3349.3,2.98569]
[1735667133107,0.61109446,3349.7,3349.2,2.98576]
[1735667133308,0.61109446,3349.7,3349.6,0.03402242]
[1735667133515,1.41102493,3349.8,3349.2,2.98576]
[1735667133801,1.2292,3349.8,3349.6,0.03346219]
[1735667134007,1.2292,3349.8,3349.3,2.98569]
[1735667134208,1.2292,3349.8,3349.7,0.03342534]
[1735667134363,1.2292,3349.8,3349.3,2.98569]
[1735667134758,1.2292,3349.8,3349.5,2.98548]
[1735667135195,1.2292,3349.8,3349.6,3.01888219]
[1735667135389,1.2292,3349.8,3349.6,0.03346219]
[1735667135890,1.2292,3349.8,3349.4,2.98559]
[1735667136097,1.2292,3349.8,3349.7,0.03342534]
[1735667136409,1.2292,3350.5,3349.3,6.50116435]
[1735667136710,0.00306361,3350.8,3350.6,2.98446]
[1735667137215,0.00306361,3350.8,3350.7,0.03255106]
[1735667137507,0.00306361,3350.8,3350.1,2.98495]
[1735667137710,0.00306361,3350.8,3350.2,2.98489]
[1735667137911,0.00306361,3350.8,3350.3,2.9848]
[1735667138286,0.00306361,3350.8,3350.3,3.01559934]
[1735667139346,0.00306361,3350.8,3350.3,0.03079934]
[1735667139469,0.55,3350.5,3350.3,0.03079934]
[1735667139673,1.2292,3350.4,3349.5,2.98549]
[1735667139863,1.2292,3350.4,3349.2,3.0]
[1735667140420,1.2292,3350.4,3349.8,2.98521]
[1735667140670,1.2292,3350.4,3349.3,0.0366417]
[1735667140841,1.2292,3350.4,3349.9,0.03373904]
[1735667141126,0.421377,3350.3,3348.9,2.98598]
[1735667141329,0.58550132,3350.5,3349.5,3.50116435]
[1735667141530,0.58550132,3350.5,3349.7,2.98528]
[1735667141677,0.58550132,3350.5,3349.6,3.03386656]
[1735667141879,1.2407,3350.4,3349.6,0.03386656]
[1735667142081,0.58550132,3350.5,3347.8,1.173]
[1735667142082,1.2407,3349.6,3347.8,1.173]
[1735667142431,2.98579,3349.2,3348.1,2.98676]
[1735667142636,2.9861,3348.9,3347.9,0.03211894]
[1735667142776,2.98621,3348.8,3348.2,0.02986704]
[1735667142979,0.55,3349.0,3347.6,2.98718]
[1735667143231,2.9865,3348.4,3348.3,0.03196089]
[1735667143441,1.7907,3348.4,3346.8,5.41021901]
[1735667143736,4.77721,3348.4,3346.9,0.03034659]
[1735667143874,1.7907,3348.4,3347.0,3.0]
[1735667144249,1.7907,3348.4,3347.4,2.98737]
[1735667144449,0.17907,3348.3,3347.5,2.98722]
[1735667144591,0.17907,3348.3,3347.5,3.01949702]
[1735667144830,1.2407,3348.4,3347.5,0.03227702]
[1735667145139,1.2407,3348.4,3347.7,2.98704]
[1735667145489,1.2407,3348.4,3347.8,3.01915845]
[1735667145826,1.2407,3348.4,3348.1,2.98675]
[1735667146182,2.98556,3349.5,3348.2,0.0320004]
[1735667146376,1.539256,3349.4,3348.2,0.0320004]
[1735667146608,1.539256,3349.4,3348.9,2.98605]
[1735667146823,1.2407,3349.4,3348.9,2.98605]
[1735667146980,1.2407,3349.4,3349.0,0.03168441]
[1735667147185,1.2407,3349.4,3348.9,2.98605]
[1735667147517,1.2407,3349.4,3349.0,0.03168441]
[1735667147678,1.2407,3349.4,3347.8,4.173]
[1735667147880,1.2407,3349.4,3348.9,2.98604]
[1735667148243,1.2407,3349.4,3349.0,0.03168441]
[1735667148383,1.2407,3349.9,3349.2,2.98578]
[1735667148580,1.2407,3349.9,3349.1,2.98587]
[1735667148581,1.2407,3349.9,3349.1,0.02953526]
[1735667148781,0.55,3349.8,3348.7,3.0]
[1735667149117,0.55,3349.6,3348.5,2.9864]
[1735667149281,0.408534,3349.5,3348.8,0.02964583]
[1735667149488,1.7907,3349.5,3348.5,2.9864]
[1735667149727,1.7907,3349.5,3348.6,0.03184239]
[1735667150034,0.55,3349.2,3347.6,4.16021]
[1735667150240,0.55,3349.0,3348.7,0.03125938]
[1735667150397,0.23407,3348.9,3347.6,1.173]
[1735667150580,0.55,3348.8,3347.9,3.0]
[1735667150777,0.55,3348.8,3347.9,2.9869]
[1735667151221,0.55,3348.8,3347.4,3.0]
[1735667151222,0.55,3348.8,3348.0,2.98683]
[1735667151724,0.55,3348.8,3348.1,2.98676]
[1735667151970,0.752477,3348.8,3348.0,2.98685]
[1735667152230,0.752477,3348.8,3347.1,4.173]
[1735667152380,0.752477,3348.8,3348.1,3.01842631]
[1735667152584,0.202477,3348.8,3347.3,3.0]
[1735667152839,1.2407,3349.1,3348.4,2.98645]
[1735667152983,1.2407,3349.1,3347.7,2.98705]
[1735667153201,1.2407,3349.1,3348.5,0.03154882]
[1735667153387,1.2407,3349.1,3347.3,5.98748]
[1735667153388,0.55,3349.0,3348.2,2.98659]
[1735667153585,0.55,3349.0,3348.6,0.03186258]
[1735667153791,0.17907,3348.9,3348.3,2.98656]
[1735667154341,0.17907,3348.9,3348.4,0.03182167]
[1735667155416,1.2407,3349.1,3348.4,0.03182167]
[1735667155749,1.2407,3349.1,3348.7,2.98617]
[1735667156140,1.2407,3349.1,3348.8,0.03160004]
[1735667156286,1.2407,3349.1,3348.7,2.98617]
[1735667156481,1.2407,3349.1,3348.8,0.03160004]
[1735667156749,0.55,3349.0,3347.9,2.98685]
[1735667157048,0.55,3348.5,3347.5,2.98727]
[1735667157181,1.2056,3348.4,3347.0,4.1546]
[1735667157498,1.2056,3348.4,3348.0,2.98677]
[1735667157703,1.2056,3348.4,3347.1,2.98766]
[1735667157921,1.2056,3348.4,3348.1,2.98674]
[1735667158119,0.55,3349.6,3348.3,2.98659]
[1735667158420,1.2056,3349.0,3348.0,2.98677]
[1735667158588,1.2056,3349.0,3348.1,2.98668]
[1735667158987,1.2056,3349.0,3348.2,2.98667]
[1735667160323,0.55,3348.9,3347.2,3.0]
[1735667160519,1.2056,3349.0,3347.4,3.0]
[1735667160725,1.2056,3349.0,3348.2,2.98665]
[1735667160975,1.2056,3349.0,3348.0,2.98684]
[1735667161174,1.2056,3349.0,3348.7,2.98622]
[1735667161355,1.2056,3349.0,3348.0,4.14144]
[1735667161558,0.55,3348.9,3347.7,2.98709]
[1735667161928,1.2525,3348.5,3347.6,2.9872]
[1735667162128,0.423882,3348.4,3347.0,5.40396901]
[1735667162330,0.423882,3348.4,3347.5,2.98727]
[1735667162841,0.423882,3348.4,3347.2,2.98748]
[1735667162842,0.55,3348.3,3347.2,2.98748]
[1735667163042,1.8025,3348.0,3347.1,2.98764]
[1735667164247,4.78938,3348.0,3346.9,2.98779]
[1735667164451,0.55,3347.8,3346.9,2.98779]
[1735667164689,0.55,3347.8,3346.6,3.0]
[1735667164896,0.55,3347.8,3347.0,2.98767]
[1735667165075,1.2525,3348.0,3346.9,2.98781]
[1735667165411,1.2525,3348.9,3348.1,2.98676]
[1735667165547,1.2525,3348.6,3346.6,2.98805]
[1735667165754,2.98651,3348.4,3347.4,2.98735]
[1735667166066,4.75829924,3348.6,3347.0,2.98775]
[1735667166067,3.53676,3348.1,3347.0,2.98769]
[1735667166294,0.82950592,3348.0,3346.8,3.0]
[1735667166456,0.82950592,3348.0,3347.2,2.98755]
[1735667166856,0.82950592,3348.0,3346.8,3.0]
[1735667167051,1.2525,3347.7,3346.9,2.98782]
[1735667167250,0.55,3347.6,3346.7,2.98798]
[1735667167448,0.55,3347.6,3347.0,0.03075751]
[1735667167651,1.2525,3347.7,3346.3,2.98837]
[1735667167905,1.2525,3347.7,3347.1,2.98764]
[1735667168059,0.18549656,3347.6,3346.4,3.01925896]
[1735667168255,1.2525,3347.7,3347.2,3.01823372]
[1735667168493,1.2525,3347.7,3346.6,3.0]
[1735667168700,1.2525,3348.5,3347.7,2.98708]
[1735667169012,1.2525,3348.5,3347.8,0.03166918]
[1735667169302,0.55,3348.1,3347.8,0.03166918]
[1735667169608,0.18025,3348.0,3346.7,1.178]
[1735667169801,0.18025,3348.0,3347.9,0.03207732]
[1735667170008,3.50579924,3348.2,3347.5,2.98729]
[1735667170208,0.55,3348.2,3347.9,0.03198965]
[1735667170353,3.53696,3347.9,3346.9,2.98779]
[1735667170552,0.55,3347.6,3346.7,2.98798]
[1735667170752,1.2431,3347.4,3347.0,0.03232167]
[1735667170971,1.2431,3347.9,3346.3,2.98837]
[1735667171212,1.2431,3347.9,3347.4,2.98734]
[1735667171732,1.2431,3347.9,3347.5,0.03213719]
[1735667171875,1.2431,3347.9,3347.6,2.98718]
[1735667172201,1.2431,3347.9,3347.7,0.03206342]
[1735667172401,1.2431,3348.4,3347.7,2.98704]
[1735667172604,0.47488992,3348.3,3347.8,0.03213444]
[1735667172825,0.47488992,3348.3,3347.6,2.98721]
[1735667173003,0.47488992,3348.3,3347.9,0.03209755]
[1735667173206,0.47488992,3348.3,3346.7,1.2453]
[1735667173534,0.55,3348.2,3346.7,1.2453]
[1735667173826,1.52918084,3348.1,3346.8,3.03250338]
[1735667173973,3.50579924,3348.6,3346.8,3.03250338]
[1735667173974,3.50579924,3349.0,3347.0,3.0]
[1735667174179,1.2431,3348.9,3347.0,3.0]
[1735667174435,1.2431,3348.9,3347.1,0.03219036]
[1735667174582,1.2431,3348.9,3347.6,3.0]
[1735667174921,1.2431,3348.9,3347.8,2.98701]
[1735667175135,1.665997,3348.9,3347.9,2.98685]
[1735667175336,1.2431,3348.8,3347.7,3.01903878]
[1735667175636,4.22927,3348.8,3347.9,0.03187502]
[1735667175779,4.22927,3348.8,3347.8,0.0319119]
[1735667175977,0.55,3348.6,3348.0,0.03183814]
[1735667176209,0.17931,3348.5,3348.0,0.03183814]
[1735667176390,1.2431,3348.8,3347.1,1.2453]
[1735667176691,1.2431,3348.8,3347.4,5.97478]
[1735667176877,1.2431,3348.8,3348.3,2.98651]
[1735667177193,1.2431,3348.8,3348.4,0.03169064]
[1735667177399,1.2431,3348.8,3347.9,4.23222]
[1735667177723,1.2431,3349.2,3349.0,2.98596]
[1735667177944,0.00306361,3349.3,3348.2,3.0]
[1735667178231,3.61e-06,3349.3,3349.2,5.98578]
[1735667178437,3.61e-06,3349.3,3349.2,11.79363924]
[1735667178638,3.61e-06,3349.3,3349.2,12.69985499]
[1735667179009,3.61e-06,3349.3,3349.2,9.52297499]
[1735667179444,3.61e-06,3349.3,3349.2,14.85641499]
[1735667179655,3.61e-06,3349.3,3349.2,14.05394499]
[1735667180350,3.61e-06,3349.3,3349.2,13.48456499]
[1735667180641,3.61e-06,3349.3,3349.2,14.63347499]
[1735667180992,3.61e-06,3349.3,3349.2,15.19508883]
[1735667181236,1.2431,3352.0,3349.9,0.1902]
[1735667181411,1.2431,3352.0,3351.5,2.98372]
[1735667181594,0.24465047,3351.9,3350.6,3.17467]
[1735667181799,0.24465047,3351.9,3350.8,2.98428]
[1735667182042,0.24465047,3351.9,3350.8,2.98436]
[1735667182285,0.24465047,3351.9,3350.9,0.0401102]
[1735667182539,1.2431,3352.0,3351.8,2.98346]
[1735667182895,1.20340472,3352.2,3351.9,0.04351596]
[1735667183097,1.2431,3352.4,3351.9,0.04351596]
[1735667183848,1.2431,3351.9,3350.7,2.98444]
[1735667183994,3.50579924,3352.3,3349.8,2.98524]
[1735667183995,2.98409,3351.1,3349.8,2.98524]
[1735667184194,0.298409,3351.0,3350.8,0.03977164]
[1735667184446,0.55,3351.0,3349.6,1.2453]
[1735667184751,2.98455,3350.6,3349.9,1.24623658]
[1735667184954,1.2431,3350.5,3349.9,1.24623658]
[1735667185156,1.2431,3350.5,3350.0,3.02526355]
[1735667185445,1.2431,3351.5,3350.0,0.04021355]
[1735667185652,0.18507272,3351.4,3350.0,0.04021355]
[1735667185951,0.18507272,3351.4,3350.3,2.98475]
[1735667186455,0.18507272,3351.4,3350.4,0.03999257]
[1735667186796,0.18507272,3351.4,3350.6,2.98449]
[1735667187015,0.18507272,3351.4,3350.7,2.98444]
[1735667187219,0.18507272,3351.4,3350.7,0.03982687]
[1735667187540,0.18507272,3351.4,3350.8,0.03977164]
[1735667187541,1.8025,3351.1,3350.8,0.03977164]
[1735667187745,0.478652,3351.0,3350.1,2.98497]
[1735667187915,0.478652,3351.0,3350.9,0.03971642]
[1735667188112,1.2525,3351.1,3349.8,2.98525]
[1735667188428,1.2525,3351.1,3350.0,2.98506]
[1735667188616,1.2525,3351.1,3350.1,2.98496]
[1735667188812,1.2525,3351.1,3350.1,3.0251283]
[1735667188997,1.2525,3351.1,3350.3,2.98473]
[1735667189201,1.2525,3351.1,3350.4,2.98467]
[1735667189417,1.2525,3351.1,3350.8,2.98435]
[1735667189618,1.2525,3351.1,3350.5,0.03993733]
[1735667189902,1.2525,3351.8,3351.0,2.98418]
[1735667190143,0.18660362,3351.7,3351.1,0.03960598]
[1735667190340,0.18660362,3351.7,3350.7,2.98441]
[1735667190505,0.18660362,3351.7,3351.2,0.0439453]
[1735667190701,0.18660362,3351.7,3351.0,2.98412]
[1735667190907,0.18660362,3351.7,3351.1,0.04400665]
[1735667191139,1.2525,3351.8,3351.3,2.98385]
[1735667191342,1.2525,3351.8,3351.3,2.9839]
[1735667191555,1.2525,3351.8,3351.4,0.04382261]
[1735667191965,1.2525,3351.8,3351.2,2.98397]
[1735667192137,1.2525,3351.8,3351.5,0.04376127]
[1735667192339,1.2525,3351.8,3351.7,2.98356]
[1735667192556,1.2381,3353.2,3351.5,3.0]
[1735667192880,1.2381,3352.6,3351.4,2.98377]
[1735667193016,4.22089,3352.6,3351.5,2.98372]
[1735667193216,0.422089,3352.5,3351.7,2.98355]
[1735667193462,1.2381,3352.6,3351.7,2.98355]
[1735667193864,2.98303,3352.3,3351.2,2.98395]
[1735667194079,0.55,3352.5,3351.3,2.9839]
[1735667194292,2.98312,3352.2,3351.1,2.98401]
[1735667194469,2.98312,3352.2,3350.4,5.96942]
[1735667194774,0.422122,3352.1,3351.2,2.98399]
[1735667195073,0.422122,3352.1,3351.3,2.98391]
[1735667195823,1.2381,3352.4,3350.3,1.2229]
[1735667196129,1.2381,3352.4,3351.7,2.98352]
[1735667196360,1.2381,3352.4,3351.2,3.0]
[1735667196576,1.2381,3352.4,3351.2,4.2229]
[1735667197338,0.55,3352.1,3350.3,1.2229]
[1735667197548,0.55,3351.8,3350.3,4.20765]
[1735667197745,0.55,3351.8,3350.8,2.98434]
[1735667198178,1.85212445,3352.0,3350.3,1.2229]
[1735667198348,1.85212445,3352.0,3350.4,2.98471]
[1735667198531,2.98356,3351.7,3350.6,2.9845]
[1735667198731,1.2381,3351.5,3350.6,2.9845]
[1735667199031,1.2381,3351.5,3350.7,2.9844]
[1735667199254,1.2381,3351.5,3350.0,2.98507]
[1735667199255,1.2381,3351.5,3350.8,2.98432]
[1735667199537,1.2381,3351.5,3349.9,1.2229]
[1735667199538,1.2381,3351.5,3350.3,2.98473]
[1735667199738,1.2381,3351.5,3350.9,2.98424]
[1735667199980,1.3972456,3351.5,3350.7,2.98437]
[1735667200181,4.3809856,3351.5,3349.9,1.2229]
[1735667200531,0.55,3351.4,3350.2,2.98483]
[1735667200723,1.1582,3350.9,3349.9,2.98515]
[1735667200945,0.414243,3350.8,3349.2,1.1817]
[1735667201288,0.414243,3350.8,3349.2,2.98577]
[1735667201289,1.1582,3350.2,3349.2,2.98577]
[1735667201432,1.1582,3350.2,3349.1,2.98579]
[1735667201628,4.14309,3350.2,3349.1,2.98582]
[1735667202134,2.98525,3349.8,3348.8,2.98609]
[1735667202327,1.1582,3349.9,3348.9,2.98603]
[1735667202562,0.52967382,3349.8,3348.9,2.986]
[1735667202882,3.53534,3349.8,3348.7,2.9862]
[1735667203762,0.55,3349.6,3348.4,2.98643]
[1735667203931,1.1582,3349.5,3348.4,2.98643]
[1735667204787,1.1582,3349.5,3347.7,3.0]
[1735667205074,1.1582,3349.5,3348.4,2.98647]
[1735667205282,0.17082,3349.4,3348.4,2.98647]
[1735667205781,1.1582,3349.2,3348.2,2.98667]
[1735667207329,1.1582,3349.2,3348.3,2.9865]
[1735667207525,1.1582,3349.2,3347.5,1.1817]
[1735667207757,1.1582,3349.2,3348.7,2.98622]
[1735667207944,1.1582,3349.2,3348.2,2.9866]
[1735667208246,1.1582,3349.2,3348.6,2.98631]
[1735667208448,1.1582,3349.2,3347.8,3.0]
[1735667208735,1.1582,3349.2,3348.4,2.98647]
[1735667209065,1.572576,3349.2,3348.4,2.98647]
[1735667209451,3.53592,3349.1,3348.0,2.98681]
[1735667209683,3.53592,3349.1,3348.1,2.98674]
[1735667210182,1.572576,3349.2,3348.3,2.98654]
[1735667210476,0.55,3349.1,3348.1,2.98675]
[1735667211247,1.1582,3349.2,3347.6,5.97442]
[1735667211446,1.1582,3349.2,3348.4,2.98649]
[1735667211770,0.55,3349.1,3347.3,1.1817]
[1735667211945,0.55,3349.1,3348.3,2.98657]
[1735667212145,0.17082,3349.0,3348.0,2.9868]
[1735667212422,1.1582,3348.9,3348.0,2.9868]
[1735667212538,1.1582,3348.9,3348.1,2.98669]
[1735667213075,0.55,3348.8,3347.8,2.98695]
[1735667213275,1.1582,3348.7,3347.4,2.98739]
[1735667213477,0.469436,3348.6,3347.7,2.98704]
[1735667213674,0.469436,3348.6,3347.5,0.04353659]
[1735667213837,0.469436,3348.6,3347.8,2.987]
[1735667214287,1.1582,3348.5,3347.9,0.03952552]
[1735667215049,1.1582,3348.5,3347.7,2.98711]
[1735667215254,2.05480305,3348.5,3348.0,0.0395028]
[1735667215449,2.05480305,3348.5,3347.8,2.987]
[1735667215697,2.05480305,3348.5,3348.1,0.03945251]
[1735667215899,2.05480305,3348.5,3347.7,2.98704]
[1735667216070,2.05480305,3348.5,3348.2,0.03973317]
[1735667216403,0.25242391,3348.4,3348.3,0.03961853]
[1735667216893,0.25242391,3348.4,3347.8,2.98702]
[1735667217099,0.25242391,3348.4,3348.3,0.03962773]
[1735667217602,1.2097,3348.3,3346.3,2.98836]
[1735667217767,4.19665,3347.9,3346.9,2.98776]
[1735667218106,1.2097,3347.9,3346.8,2.98788]
[1735667218310,3.50683304,3347.6,3347.0,0.04267035]
[1735667218454,3.50683304,3347.6,3346.9,0.0427257]
[1735667218654,3.50683304,3347.6,3346.9,2.98783]
[1735667219151,3.50683304,3347.6,3347.0,0.04267035]
[1735667219352,3.50683304,3347.6,3346.7,2.98798]
[1735667219552,1.2097,3347.5,3346.8,0.04278106]
[1735667220801,1.2097,3347.5,3346.0,2.98864]
[1735667221001,1.2097,3347.5,3346.9,0.0427257]
[1735667221216,1.2097,3347.5,3345.3,4.17332]
[1735667221217,1.2097,3347.4,3345.3,4.17332]
[1735667221427,1.2097,3347.0,3345.9,2.98864]
[1735667221590,2.98786,3346.9,3345.4,5.97834]
[1735667221948,0.419756,3346.8,3345.8,2.98874]
[1735667222084,0.419756,3346.8,3345.3,1.1841]
[1735667222290,0.419756,3346.8,3345.9,2.9887]
[1735667223186,1.2097,3347.0,3346.2,2.98846]
[1735667223429,1.2097,3347.0,3345.4,2.98917]
[1735667223430,1.2097,3347.0,3345.3,1.1841]
[1735667223592,1.2097,3347.0,3345.3,4.17335]
[1735667223791,1.2097,3346.4,3344.9,1.1841]
[1735667223993,3.81280623,3346.3,3344.6,0.1675165]
[1735667224187,2.989,3345.6,3344.6,3.1573865]
[1735667224422,1.2097,3345.7,3344.7,2.9898]
[1735667224942,1.2097,3345.7,3344.6,0.1675165]
[1735667225151,1.2097,3345.7,3345.2,2.98927]
[1735667226207,1.2097,3345.7,3345.0,2.98951]
[1735667226412,1.2097,3345.7,3344.6,0.1675165]
[1735667226618,1.2097,3345.7,3344.9,2.98959]
[1735667227265,1.2097,3345.7,3344.6,0.1675165]
[1735667227467,1.2097,3345.7,3345.0,0.03353554]
[1735667227683,1.2097,3346.4,3345.2,2.98935]
[1735667227890,1.2097,3347.3,3345.1,1.21757834]
[1735667228048,1.81713755,3347.3,3345.5,2.98908]
[1735667228372,2.98793,3346.8,3345.8,2.98876]
[1735667228570,0.18171376,3347.2,3345.9,2.98872]
[1735667228571,1.2097,3346.7,3345.9,2.98872]
[1735667228772,1.2097,3346.7,3346.1,2.98847]
[1735667229160,1.2097,3346.7,3346.0,0.03291645]
[1735667229366,1.2097,3346.7,3346.3,2.98835]
[1735667229967,1.2097,3346.7,3346.4,0.03241788]
[1735667230583,1.2097,3347.2,3346.7,2.98801]
[1735667231182,1.2097,3347.2,3346.8,0.03227024]
[1735667231330,1.2097,3347.2,3346.8,3.02019024]
[1735667231644,1.1992,3347.8,3347.2,2.98755]
[1735667231845,1.1992,3347.8,3346.9,0.03223333]
[1735667232058,3.53724,3347.6,3347.3,0.03208574]
[1735667232377,3.53724,3347.6,3346.0,2.98858]
[1735667232378,1.1992,3347.5,3346.0,3.0]
[1735667232582,1.1992,3347.5,3346.6,2.98808]
[1735667232877,1.1992,3347.5,3346.7,2.98795]
[1735667233079,1.1992,3347.5,3346.7,0.03230714]
[1735667233371,1.1992,3347.5,3346.0,3.0]
[1735667233681,1.1992,3347.5,3346.8,3.02019024]
[1735667233832,1.1992,3347.5,3345.9,3.0]
[1735667234029,1.1992,3347.5,3346.9,3.02001333]
[1735667234236,1.1992,3347.5,3345.9,3.0]
[1735667234589,1.1992,3347.5,3347.0,2.98772]
[1735667234747,1.1992,3348.5,3346.8,2.98792]
[1735667234946,1.1992,3348.5,3346.7,1.2396]
[1735667234947,1.617756,3348.5,3347.0,2.98775]
[1735667235203,1.1992,3348.5,3347.3,2.98748]
[1735667235406,1.1992,3348.5,3347.9,2.98691]
[1735667235629,1.1992,3348.5,3347.5,2.98725]
[1735667235789,1.1992,3348.5,3348.0,0.03182754]
[1735667236146,1.1992,3348.5,3347.9,2.98687]
[1735667236441,1.1992,3348.5,3348.0,0.03182754]
[1735667236655,1.1992,3348.5,3347.4,1.2396]
[1735667236948,1.1992,3348.5,3348.4,2.9865]
[1735667237105,1.1992,3349.0,3348.8,2.98613]
[1735667237311,1.78940774,3349.5,3348.4,0.03168004]
[1735667237512,1.78940774,3349.5,3348.9,0.03149572]
[1735667237710,1.96834851,3349.5,3348.3,2.98651]
[1735667237913,1.96834851,3349.5,3349.0,0.03145886]
[1735667238118,1.96834851,3349.5,3347.9,1.2396]
[1735667238405,1.96834851,3349.5,3346.9,3.81280623]
[1735667238406,1.1992,3349.1,3348.6,2.98629]
[1735667238809,1.1992,3349.1,3348.2,2.98661]
[1735667239011,1.1992,3349.1,3348.7,0.03156944]
[1735667239210,1.1992,3349.1,3347.9,3.0]
[1735667239726,1.1992,3350.1,3349.0,2.98596]
[1735667239927,0.58991926,3350.0,3349.2,2.98571]
[1735667240091,0.58991926,3350.0,3349.3,2.98569]
[1735667240447,1.1992,3350.1,3349.6,2.98542]
[1735667240641,1.1992,3350.1,3349.4,0.0391663]
[1735667240946,1.1992,3351.3,3349.5,2.98552]
[1735667241146,1.1992,3351.1,3349.5,0.03911605]
[1735667241331,1.1992,3350.6,3349.5,0.03911605]
[1735667241642,1.1992,3350.1,3349.0,2.98595]
[1735667241809,1.1992,3350.1,3348.7,2.98618]
[1735667242013,1.1992,3350.1,3349.0,2.98591]
[1735667242190,1.1992,3350.1,3349.2,2.98574]
[1735667242575,1.1992,3350.1,3349.1,0.03931705]
[1735667242726,1.1992,3350.1,3349.3,3.02488655]
[1735667242892,1.96769802,3350.1,3349.7,2.98533]
[1735667243243,1.96769802,3350.1,3349.8,0.03896533]
[1735667243244,1.1992,3350.1,3349.8,0.03896533]
[1735667243543,1.1992,3350.1,3349.4,2.98559]
[1735667243712,1.1992,3350.1,3349.9,0.0389151]
[1735667244045,1.1992,3350.1,3349.0,2.98595]
[1735667244229,1.1992,3350.1,3349.9,0.04342926]
[1735667244431,1.66922602,3350.1,3349.5,2.98549]
[1735667244728,4.70026015,3350.0,3349.9,0.04342926]
[1735667244951,2.98518,3349.9,3348.5,2.98634]
[1735667245156,4.70026015,3350.0,3348.5,2.98634]
[1735667245361,4.70026015,3350.0,3349.1,2.98586]
[1735667245539,0.81552762,3349.9,3348.6,3.02606493]
[1735667245859,3.80069762,3349.9,3349.2,0.03947321]
[1735667246010,0.81552762,3349.9,3348.9,2.98605]
[1735667246372,0.81552762,3349.9,3349.3,0.03941793]
[1735667246564,0.81552762,3349.9,3348.9,2.98605]
[1735667246861,0.89708238,3349.8,3349.0,2.98596]
[1735667247172,5.30091829,3350.0,3349.0,0.03958377]
[1735667247483,5.30091829,3350.0,3348.4,2.9865]
[1735667247484,4.70026015,3350.0,3349.4,2.98559]
[1735667247806,4.70026015,3350.0,3349.5,0.03930739]
[1735667248007,1.1992,3350.0,3349.5,0.03930739]
[1735667248420,1.1992,3350.0,3348.9,1.1391]